Workbook

Sheet Simulations
A1: Kd (M) | B1: 8.00E-08 | G1: t (min) | H1: t | I1: C(x,t) | J1: Aeq(x,t) | K1: Adiss | L1: Noise | M1: SUM | N1: A | O1: B | P1: C | Q1: €a
A2: k_off (1/s) | B2: 1.00E-02 | G2: =H2/60 -> 0.004166666667 | H2: 0.25 | I2: =(Ceq*0.5*EXP(-H2*koff)*(NORMSDIST((plugl-capl+H2*vc)/SQRT(4*H2*dc))-NORMSDIST((H2*vc-capl)/SQRT(4*H2*dc)))*$B$31) -> 0.00 | J2: =(((Aeq/2)*(NORMSDIST((plugl-capl+(H2*va))/SQRT(4*H2*da))-NORMSDIST((H2*va-capl)/SQRT(4*H2*dc))))*$B$31) -> 0.00 | K2: =((koff*Ceq*EXP(-(capl-va*H2)*koff/(vc-va))/(2*(vc-va)))*Q2*((O2+N2)*NORMSDIST(N2+O2)-O2*NORMSDIST(O2)-(P2+N2)*NORMSDIST(N2+P2)+P2*NORMSDIST(P2)+(EXP(-((O2+N2)^2))-EXP(-(O2^2))-EXP(-((P2+N2)^2))+EXP(-(P2^2)))/SQRT(PI()))*$B$31) -> 0.00 | L2: =$B$19*RAND() -> 0.00 | M2: =SUM(I2:K2)+L2 -> 0.00 | N2: =plugl/Q2 -> 143.16 | O2: =(vc*H2-capl)/Q2 -> -7264.56 | P2: =(va*H2-capl)/Q2 -> -7272.57 | Q2: =2*SQRT((dc*(capl-va*H2)-da*(capl-vc*H2))/(vc-va)) -> 0.00
A3: k_on (1/sM) | B3: =koff/kd -> 1.25E+05 | G3: =H3/60 -> 0.008333333333 | H3: 0.5 | I3: 0.00 | J3: 0.00 | K3: 0.00 | L3: 0.38 | M3: =SUM(I3:K3)+L3 -> 0.38 | N3: 101.23 | O3: -5123.61 | P3: -5134.93 | Q3: 0.00
G4: 0.0125 | H4: 0.75 | I4: 0.00 | J4: 0.00 | K4: 0.00 | L4: 0.34 | M4: 0.34 | N4: 82.65 | O4: -4172.63 | P4: -4186.49 | Q4: 0.00
A5: A0 (M) | B5: 1.60E-08 | G5: 0.01666666667 | H5: 1 | I5: 0.00 | J5: 0.00 | K5: 0.00 | L5: 0.15 | M5: 0.15 | N5: 71.58 | O5: -3604.26 | P5: -3620.27 | Q5: 0.00
A6: B0 (M) | B6: 8.00E-08 | G6: 0.02083333333 | H6: 1.25 | I6: 0.00 | J6: 0.00 | K6: 0.00 | L6: 0.34 | M6: 0.34 | N6: 64.02 | O6: -3215.39 | P6: -3233.30 | Q6: 0.00
A7: C_eq (M) | B7: =((a0+b0+kd)-SQRT(((a0+b0+kd)^2)-4*(a0*b0)))/2 -> 7.60E-09 | G7: 0.025 | H7: 1.5 | I7: 0.00 | J7: 0.00 | K7: 0.00 | L7: 0.26 | M7: 0.26 | N7: 58.44 | O7: -2927.61 | P7: -2947.22 | Q7: 0.00
A8: A_eq (M) | B8: =a0-Ceq -> 8.40E-09 | G8: 0.02916666667 | H8: 1.75 | I8: 0.00 | J8: 0.00 | K8: 0.00 | L8: 0.34 | M8: 0.34 | N8: 54.11 | O8: -2703.38 | P8: -2724.56 | Q8: 0.00
A9: B_eq (M) | B9: =b0-Ceq -> 7.24E-08 | G9: 0.03333333333 | H9: 2 | I9: 0.00 | J9: 0.00 | K9: 0.00 | L9: 0.08 | M9: 0.08 | N9: 50.61 | O9: -2522.18 | P9: -2544.82 | Q9: 0.00
C10: (min) | G10: 0.0375 | H10: 2.25 | I10: 0.00 | J10: 0.00 | K10: 0.00 | L10: 0.31 | M10: 0.31 | N10: 47.72 | O10: -2371.71 | P10: -2395.72 | Q10: 0.00
A11: Elution Time A (s) | B11: 170.6 | C11: =B11/60 -> 2.8 | G11: 0.04166666667 | H11: 2.5 | I11: 0.00 | J11: 0.00 | K11: 0.00 | L11: 0.05 | M11: 0.05 | N11: 45.27 | O11: -2244.09 | P11: -2269.41 | Q11: 0.00
A12: Elution Time B (s) | B12: 97.5 | C12: =B12/60 -> 1.6 | G12: 0.04583333333 | H12: 2.75 | I12: 0.00 | J12: 0.00 | K12: 0.00 | L12: 0.05 | M12: 0.05 | N12: 43.16 | O12: -2134.02 | P12: -2160.58 | Q12: 0.00
A13: Elution Time C (s) | B13: 97.5 | C13: 1.6 | G13: 0.05 | H13: 3 | I13: 0.00 | J13: 0.00 | K13: 0.00 | L13: 0.36 | M13: 0.36 | N13: 41.33 | O13: -2037.78 | P13: -2065.51 | Q13: 0.00
A14: Voltage (V) | B14: 16327 | G14: 0.05416666667 | H14: 3.25 | I14: 0.00 | J14: 0.00 | K14: 0.00 | L14: 0.33 | M14: 0.33 | N14: 39.71 | O14: -1952.65 | P14: -1981.52 | Q14: 0.00
A15: cap to det (m) | B15: 0.23 | G15: 0.05833333333 | H15: 3.5 | I15: 0.00 | J15: 0.00 | K15: 0.00 | L15: 0.32 | M15: 0.32 | N15: 38.26 | O15: -1876.63 | P15: -1906.59 | Q15: 0.00
A16: plug length (m) | B16: 0.0045 | G16: 0.0625 | H16: 3.75 | I16: 0.00 | J16: 0.00 | K16: 0.00 | L16: 0.10 | M16: 0.10 | N16: 36.96 | O16: -1808.17 | P16: -1839.18 | Q16: 0.00
A17: E (V/m) | B17: =B14/B15 -> 70889 | G17: 0.06666666667 | H17: 4 | I17: 0.00 | J17: 0.00 | K17: 0.00 | L17: 0.17 | M17: 0.17 | N17: 35.79 | O17: -1746.09 | P17: -1778.11 | Q17: 0.00
G18: 0.07083333333 | H18: 4.25 | I18: 0.00 | J18: 0.00 | K18: 0.00 | L18: 0.10 | M18: 0.10 | N18: 34.72 | O18: -1689.42 | P18: -1722.43 | Q18: 0.00
A19: Noise | B19: 0.50 | G19: 0.075 | H19: 4.5 | I19: 0.00 | J19: 0.00 | K19: 0.00 | L19: 0.09 | M19: 0.09 | N19: 33.74 | O19: -1637.42 | P19: -1671.39 | Q19: 0.00
G20: 0.07916666667 | H20: 4.75 | I20: 0.00 | J20: 0.00 | K20: 0.00 | L20: 0.15 | M20: 0.15 | N20: 32.84 | O20: -1589.46 | P20: -1624.36 | Q20: 0.00
A21: Da (m^2/s) | B21: 1.00E-09 | G21: 0.08333333333 | H21: 5 | I21: 0.00 | J21: 0.00 | K21: 0.00 | L21: 0.09 | M21: 0.09 | N21: 32.01 | O21: -1545.04 | P21: -1580.84 | Q21: 0.00
A22: Db (m^2/s) | B22: 1.00E-07 | G22: 0.0875 | H22: 5.25 | I22: 0.00 | J22: 0.00 | K22: 0.00 | L22: 0.47 | M22: 0.47 | N22: 31.24 | O22: -1503.73 | P22: -1540.42 | Q22: 0.00
A23: Dc (m^2/s) | B23: 1.00E-09 | G23: 0.09166666667 | H23: 5.5 | I23: 0.00 | J23: 0.00 | K23: 0.00 | L23: 0.40 | M23: 0.40 | N23: 30.52 | O23: -1465.17 | P23: -1502.72 | Q23: 0.00
A24: Va (m/s) | B24: =capl/B11 -> 1.35E-03 | G24: 0.09583333333 | H24: 5.75 | I24: 0.00 | J24: 0.00 | K24: 0.00 | L24: 0.05 | M24: 0.05 | N24: 29.85 | O24: -1429.07 | P24: -1467.47 | Q24: 0.00
A25: Vb (m/s) | B25: =capl/B12 -> 2.36E-03 | G25: 0.1 | H25: 6 | I25: 0.00 | J25: 0.00 | K25: 0.00 | L25: 0.22 | M25: 0.22 | N25: 29.22 | O25: -1395.17 | P25: -1434.39 | Q25: 0.00
A26: Vc (m/s) | B26: =capl/B13 -> 2.36E-03 | G26: 0.1041666667 | H26: 6.25 | I26: 0.00 | J26: 0.00 | K26: 0.00 | L26: 0.41 | M26: 0.41 | N26: 28.63 | O26: -1363.24 | P26: -1403.27 | Q26: 0.00
A27: Ua (m^2/sV) | B27: =B24/ef -> 1.90E-08 | G27: 0.1083333333 | H27: 6.5 | I27: 0.00 | J27: 0.00 | K27: 0.00 | L27: 0.01 | M27: 0.01 | N27: 28.08 | O27: -1333.11 | P27: -1373.93 | Q27: 0.00
A28: Ub (m^2/sV) | B28: =B25/ef -> 3.33E-08 | G28: 0.1125 | H28: 6.75 | I28: 0.00 | J28: 0.00 | K28: 0.00 | L28: 0.05 | M28: 0.05 | N28: 27.55 | O28: -1304.59 | P28: -1346.19 | Q28: 0.00
A29: Uc (m^2/sV) | B29: =B26/ef -> 3.33E-08 | G29: 0.1166666667 | H29: 7 | I29: 0.00 | J29: 0.00 | K29: 0.00 | L29: 0.24 | M29: 0.24 | N29: 27.05 | O29: -1277.55 | P29: -1319.92 | Q29: 0.00
G30: 0.1208333333 | H30: 7.25 | I30: 0.00 | J30: 0.00 | K30: 0.00 | L30: 0.28 | M30: 0.28 | N30: 26.58 | O30: -1251.86 | P30: -1294.98 | Q30: 0.00
A31: Conc2RFU | B31: 10000000000 | G31: 0.125 | H31: 7.5 | I31: 0.00 | J31: 0.00 | K31: 0.00 | L31: 0.39 | M31: 0.39 | N31: 26.14 | O31: -1227.41 | P31: -1271.26 | Q31: 0.00
G32: 0.1291666667 | H32: 7.75 | I32: 0.00 | J32: 0.00 | K32: 0.00 | L32: 0.43 | M32: 0.43 | N32: 25.71 | O32: -1204.10 | P32: -1248.67 | Q32: 0.00
A33: Axis | B33: X | C33: Y | G33: 0.1333333333 | H33: 8 | I33: 0.00 | J33: 0.00 | K33: 0.00 | L33: 0.10 | M33: 0.10 | N33: 25.31 | O33: -1181.83 | P33: -1227.12 | Q33: 0.00
A34: Min | B34: 0 | C34: -1.00 | G34: 0.1375 | H34: 8.25 | I34: 0.00 | J34: 0.00 | K34: 0.00 | L34: 0.38 | M34: 0.38 | N34: 24.92 | O34: -1160.54 | P34: -1206.53 | Q34: 0.00
A35: Max | B35: 5 | C35: 60.00 | G35: 0.1416666667 | H35: 8.5 | I35: 0.00 | J35: 0.00 | K35: 0.00 | L35: 0.26 | M35: 0.26 | N35: 24.55 | O35: -1140.14 | P35: -1186.82 | Q35: 0.00
G36: 0.1458333333 | H36: 8.75 | I36: 0.00 | J36: 0.00 | K36: 0.00 | L36: 0.30 | M36: 0.30 | N36: 24.20 | O36: -1120.58 | P36: -1167.94 | Q36: 0.00
G37: 0.15 | H37: 9 | I37: 0.00 | J37: 0.00 | K37: 0.00 | L37: 0.39 | M37: 0.39 | N37: 23.86 | O37: -1101.79 | P37: -1149.83 | Q37: 0.00
G38: 0.1541666667 | H38: 9.25 | I38: 0.00 | J38: 0.00 | K38: 0.00 | L38: 0.27 | M38: 0.27 | N38: 23.54 | O38: -1083.73 | P38: -1132.43 | Q38: 0.00
G39: 0.1583333333 | H39: 9.5 | I39: 0.00 | J39: 0.00 | K39: 0.00 | L39: 0.02 | M39: 0.02 | N39: 23.22 | O39: -1066.34 | P39: -1115.69 | Q39: 0.00
G40: 0.1625 | H40: 9.75 | I40: 0.00 | J40: 0.00 | K40: 0.00 | L40: 0.11 | M40: 0.11 | N40: 22.92 | O40: -1049.59 | P40: -1099.59 | Q40: 0.00
G41: 0.1666666667 | H41: 10 | I41: 0.00 | J41: 0.00 | K41: 0.00 | L41: 0.19 | M41: 0.19 | N41: 22.64 | O41: -1033.43 | P41: -1084.07 | Q41: 0.00
G42: 0.1708333333 | H42: 10.25 | I42: 0.00 | J42: 0.00 | K42: 0.00 | L42: 0.21 | M42: 0.21 | N42: 22.36 | O42: -1017.84 | P42: -1069.10 | Q42: 0.00
G43: 0.175 | H43: 10.5 | I43: 0.00 | J43: 0.00 | K43: 0.00 | L43: 0.05 | M43: 0.05 | N43: 22.09 | O43: -1002.76 | P43: -1054.65 | Q43: 0.00
G44: 0.1791666667 | H44: 10.75 | I44: 0.00 | J44: 0.00 | K44: 0.00 | L44: 0.19 | M44: 0.19 | N44: 21.83 | O44: -988.19 | P44: -1040.68 | Q44: 0.00
G45: 0.1833333333 | H45: 11 | I45: 0.00 | J45: 0.00 | K45: 0.00 | L45: 0.15 | M45: 0.15 | N45: 21.58 | O45: -974.08 | P45: -1027.18 | Q45: 0.00
G46: 0.1875 | H46: 11.25 | I46: 0.00 | J46: 0.00 | K46: 0.00 | L46: 0.21 | M46: 0.21 | N46: 21.34 | O46: -960.41 | P46: -1014.11 | Q46: 0.00
G47: 0.1916666667 | H47: 11.5 | I47: 0.00 | J47: 0.00 | K47: 0.00 | L47: 0.34 | M47: 0.34 | N47: 21.11 | O47: -947.16 | P47: -1001.46 | Q47: 0.00
G48: 0.1958333333 | H48: 11.75 | I48: 0.00 | J48: 0.00 | K48: 0.00 | L48: 0.47 | M48: 0.47 | N48: 20.88 | O48: -934.30 | P48: -989.19 | Q48: 0.00
G49: 0.2 | H49: 12 | I49: 0.00 | J49: 0.00 | K49: 0.00 | L49: 0.05 | M49: 0.05 | N49: 20.66 | O49: -921.82 | P49: -977.29 | Q49: 0.00
G50: 0.2041666667 | H50: 12.25 | I50: 0.00 | J50: 0.00 | K50: 0.00 | L50: 0.07 | M50: 0.07 | N50: 20.45 | O50: -909.70 | P50: -965.74 | Q50: 0.00
G51: 0.2083333333 | H51: 12.5 | I51: 0.00 | J51: 0.00 | K51: 0.00 | L51: 0.44 | M51: 0.44 | N51: 20.25 | O51: -897.91 | P51: -954.52 | Q51: 0.00
G52: 0.2125 | H52: 12.75 | I52: 0.00 | J52: 0.00 | K52: 0.00 | L52: 0.21 | M52: 0.21 | N52: 20.05 | O52: -886.45 | P52: -943.62 | Q52: 0.00
G53: 0.2166666667 | H53: 13 | I53: 0.00 | J53: 0.00 | K53: 0.00 | L53: 0.08 | M53: 0.08 | N53: 19.85 | O53: -875.29 | P53: -933.03 | Q53: 0.00
G54: 0.2208333333 | H54: 13.25 | I54: 0.00 | J54: 0.00 | K54: 0.00 | L54: 0.02 | M54: 0.02 | N54: 19.66 | O54: -864.43 | P54: -922.72 | Q54: 0.00
G55: 0.225 | H55: 13.5 | I55: 0.00 | J55: 0.00 | K55: 0.00 | L55: 0.17 | M55: 0.17 | N55: 19.48 | O55: -853.85 | P55: -912.68 | Q55: 0.00
G56: 0.2291666667 | H56: 13.75 | I56: 0.00 | J56: 0.00 | K56: 0.00 | L56: 0.39 | M56: 0.39 | N56: 19.30 | O56: -843.53 | P56: -902.91 | Q56: 0.00
G57: 0.2333333333 | H57: 14 | I57: 0.00 | J57: 0.00 | K57: 0.00 | L57: 0.14 | M57: 0.14 | N57: 19.13 | O57: -833.47 | P57: -893.38 | Q57: 0.00
G58: 0.2375 | H58: 14.25 | I58: 0.00 | J58: 0.00 | K58: 0.00 | L58: 0.20 | M58: 0.20 | N58: 18.96 | O58: -823.65 | P58: -884.10 | Q58: 0.00
G59: 0.2416666667 | H59: 14.5 | I59: 0.00 | J59: 0.00 | K59: 0.00 | L59: 0.45 | M59: 0.45 | N59: 18.80 | O59: -814.07 | P59: -875.04 | Q59: 0.00
G60: 0.2458333333 | H60: 14.75 | I60: 0.00 | J60: 0.00 | K60: 0.00 | L60: 0.06 | M60: 0.06 | N60: 18.64 | O60: -804.71 | P60: -866.20 | Q60: 0.00
G61: 0.25 | H61: 15 | I61: 0.00 | J61: 0.00 | K61: 0.00 | L61: 0.21 | M61: 0.21 | N61: 18.48 | O61: -795.56 | P61: -857.58 | Q61: 0.00
G62: 0.2541666667 | H62: 15.25 | I62: 0.00 | J62: 0.00 | K62: 0.00 | L62: 0.32 | M62: 0.32 | N62: 18.33 | O62: -786.62 | P62: -849.15 | Q62: 0.00
G63: 0.2583333333 | H63: 15.5 | I63: 0.00 | J63: 0.00 | K63: 0.00 | L63: 0.08 | M63: 0.08 | N63: 18.18 | O63: -777.88 | P63: -840.92 | Q63: 0.00
G64: 0.2625 | H64: 15.75 | I64: 0.00 | J64: 0.00 | K64: 0.00 | L64: 0.36 | M64: 0.36 | N64: 18.04 | O64: -769.33 | P64: -832.87 | Q64: 0.00
G65: 0.2666666667 | H65: 16 | I65: 0.00 | J65: 0.00 | K65: 0.00 | L65: 0.01 | M65: 0.01 | N65: 17.89 | O65: -760.96 | P65: -825.01 | Q65: 0.00
G66: 0.2708333333 | H66: 16.25 | I66: =(Ceq*0.5*EXP(-H66*koff)*(NORMSDIST((plugl-capl+H66*vc)/SQRT(4*H66*dc))-NORMSDIST((H66*vc-capl)/SQRT(4*H66*dc)))*$B$31) -> 0.00 | J66: =(((Aeq/2)*(NORMSDIST((plugl-capl+(H66*va))/SQRT(4*H66*da))-NORMSDIST((H66*va-capl)/SQRT(4*H66*dc))))*$B$31) -> 0.00 | K66: =((koff*Ceq*EXP(-(capl-va*H66)*koff/(vc-va))/(2*(vc-va)))*Q66*((O66+N66)*NORMSDIST(N66+O66)-O66*NORMSDIST(O66)-(P66+N66)*NORMSDIST(N66+P66)+P66*NORMSDIST(P66)+(EXP(-((O66+N66)^2))-EXP(-(O66^2))-EXP(-((P66+N66)^2))+EXP(-(P66^2)))/SQRT(PI()))*$B$31) -> 0.00 | L66: =$B$19*RAND() -> 0.28 | M66: 0.28 | N66: =plugl/Q66 -> 17.76 | O66: =(vc*H66-capl)/Q66 -> -752.77 | P66: =(va*H66-capl)/Q66 -> -817.31 | Q66: =2*SQRT((dc*(capl-va*H66)-da*(capl-vc*H66))/(vc-va)) -> 0.00
G67: =H67/60 -> 0.275 | H67: 16.5 | I67: 0.00 | J67: 0.00 | K67: 0.00 | L67: 0.17 | M67: =SUM(I67:K67)+L67 -> 0.17 | N67: 17.62 | O67: -744.74 | P67: -809.78 | Q67: 0.00
G68: 0.2791666667 | H68: 16.75 | I68: 0.00 | J68: 0.00 | K68: 0.00 | L68: 0.06 | M68: 0.06 | N68: 17.49 | O68: -736.88 | P68: -802.41 | Q68: 0.00
G69: 0.2833333333 | H69: 17 | I69: 0.00 | J69: 0.00 | K69: 0.00 | L69: 0.01 | M69: 0.01 | N69: 17.36 | O69: -729.18 | P69: -795.20 | Q69: 0.00
G70: 0.2875 | H70: 17.25 | I70: 0.00 | J70: 0.00 | K70: 0.00 | L70: 0.48 | M70: 0.48 | N70: 17.23 | O70: -721.62 | P70: -788.13 | Q70: 0.00
G71: 0.2916666667 | H71: 17.5 | I71: 0.00 | J71: 0.00 | K71: 0.00 | L71: 0.01 | M71: 0.01 | N71: 17.11 | O71: -714.22 | P71: -781.20 | Q71: 0.00
G72: 0.2958333333 | H72: 17.75 | I72: 0.00 | J72: 0.00 | K72: 0.00 | L72: 0.25 | M72: 0.25 | N72: 16.99 | O72: -706.95 | P72: -774.41 | Q72: 0.00
G73: 0.3 | H73: 18 | I73: 0.00 | J73: 0.00 | K73: 0.00 | L73: 0.05 | M73: 0.05 | N73: 16.87 | O73: -699.83 | P73: -767.76 | Q73: 0.00
G74: 0.3041666667 | H74: 18.25 | I74: 0.00 | J74: 0.00 | K74: 0.00 | L74: 0.19 | M74: 0.19 | N74: 16.76 | O74: -692.83 | P74: -761.23 | Q74: 0.00
G75: 0.3083333333 | H75: 18.5 | I75: 0.00 | J75: 0.00 | K75: 0.00 | L75: 0.47 | M75: 0.47 | N75: 16.64 | O75: -685.96 | P75: -754.83 | Q75: 0.00
G76: 0.3125 | H76: 18.75 | I76: 0.00 | J76: 0.00 | K76: 0.00 | L76: 0.12 | M76: 0.12 | N76: 16.53 | O76: -679.22 | P76: -748.55 | Q76: 0.00
G77: 0.3166666667 | H77: 19 | I77: 0.00 | J77: 0.00 | K77: 0.00 | L77: 0.33 | M77: 0.33 | N77: 16.42 | O77: -672.59 | P77: -742.38 | Q77: 0.00
G78: 0.3208333333 | H78: 19.25 | I78: 0.00 | J78: 0.00 | K78: 0.00 | L78: 0.29 | M78: 0.29 | N78: 16.31 | O78: -666.08 | P78: -736.33 | Q78: 0.00
G79: 0.325 | H79: 19.5 | I79: 0.00 | J79: 0.00 | K79: 0.00 | L79: 0.32 | M79: 0.32 | N79: 16.21 | O79: -659.68 | P79: -730.39 | Q79: 0.00
G80: 0.3291666667 | H80: 19.75 | I80: 0.00 | J80: 0.00 | K80: 0.00 | L80: 0.21 | M80: 0.21 | N80: 16.11 | O80: -653.39 | P80: -724.55 | Q80: 0.00
G81: 0.3333333333 | H81: 20 | I81: 0.00 | J81: 0.00 | K81: 0.00 | L81: 0.08 | M81: 0.08 | N81: 16.01 | O81: -647.20 | P81: -718.81 | Q81: 0.00
G82: 0.3375 | H82: 20.25 | I82: 0.00 | J82: 0.00 | K82: 0.00 | L82: 0.12 | M82: 0.12 | N82: 15.91 | O82: -641.12 | P82: -713.18 | Q82: 0.00
G83: 0.3416666667 | H83: 20.5 | I83: 0.00 | J83: 0.00 | K83: 0.00 | L83: 0.48 | M83: 0.48 | N83: 15.81 | O83: -635.14 | P83: -707.64 | Q83: 0.00
G84: 0.3458333333 | H84: 20.75 | I84: 0.00 | J84: 0.00 | K84: 0.00 | L84: 0.11 | M84: 0.11 | N84: 15.71 | O84: -629.25 | P84: -702.19 | Q84: 0.00
G85: 0.35 | H85: 21 | I85: 0.00 | J85: 0.00 | K85: 0.00 | L85: 0.40 | M85: 0.40 | N85: 15.62 | O85: -623.45 | P85: -696.83 | Q85: 0.00
G86: 0.3541666667 | H86: 21.25 | I86: 0.00 | J86: 0.00 | K86: 0.00 | L86: 0.17 | M86: 0.17 | N86: 15.53 | O86: -617.75 | P86: -691.56 | Q86: 0.00
G87: 0.3583333333 | H87: 21.5 | I87: 0.00 | J87: 0.00 | K87: 0.00 | L87: 0.33 | M87: 0.33 | N87: 15.44 | O87: -612.13 | P87: -686.38 | Q87: 0.00
G88: 0.3625 | H88: 21.75 | I88: 0.00 | J88: 0.00 | K88: 0.00 | L88: 0.02 | M88: 0.02 | N88: 15.35 | O88: -606.60 | P88: -681.28 | Q88: 0.00
G89: 0.3666666667 | H89: 22 | I89: 0.00 | J89: 0.00 | K89: 0.00 | L89: 0.24 | M89: 0.24 | N89: 15.26 | O89: -601.15 | P89: -676.26 | Q89: 0.00
G90: 0.3708333333 | H90: 22.25 | I90: 0.00 | J90: 0.00 | K90: 0.00 | L90: 0.40 | M90: 0.40 | N90: 15.17 | O90: -595.79 | P90: -671.32 | Q90: 0.00
G91: 0.375 | H91: 22.5 | I91: 0.00 | J91: 0.00 | K91: 0.00 | L91: 0.08 | M91: 0.08 | N91: 15.09 | O91: -590.50 | P91: -666.45 | Q91: 0.00
G92: 0.3791666667 | H92: 22.75 | I92: 0.00 | J92: 0.00 | K92: 0.00 | L92: 0.48 | M92: 0.48 | N92: 15.01 | O92: -585.29 | P92: -661.66 | Q92: 0.00
G93: 0.3833333333 | H93: 23 | I93: 0.00 | J93: 0.00 | K93: 0.00 | L93: 0.15 | M93: 0.15 | N93: 14.93 | O93: -580.15 | P93: -656.94 | Q93: 0.00
G94: 0.3875 | H94: 23.25 | I94: 0.00 | J94: 0.00 | K94: 0.00 | L94: 0.13 | M94: 0.13 | N94: 14.84 | O94: -575.09 | P94: -652.29 | Q94: 0.00
G95: 0.3916666667 | H95: 23.5 | I95: 0.00 | J95: 0.00 | K95: 0.00 | L95: 0.11 | M95: 0.11 | N95: 14.77 | O95: -570.09 | P95: -647.71 | Q95: 0.00
G96: 0.3958333333 | H96: 23.75 | I96: 0.00 | J96: 0.00 | K96: 0.00 | L96: 0.32 | M96: 0.32 | N96: 14.69 | O96: -565.17 | P96: -643.20 | Q96: 0.00
G97: 0.4 | H97: 24 | I97: 0.00 | J97: 0.00 | K97: 0.00 | L97: 0.50 | M97: 0.50 | N97: 14.61 | O97: -560.31 | P97: -638.75 | Q97: 0.00
G98: 0.4041666667 | H98: 24.25 | I98: 0.00 | J98: 0.00 | K98: 0.00 | L98: 0.01 | M98: 0.01 | N98: 14.54 | O98: -555.52 | P98: -634.37 | Q98: 0.00
G99: 0.4083333333 | H99: 24.5 | I99: 0.00 | J99: 0.00 | K99: 0.00 | L99: 0.09 | M99: 0.09 | N99: 14.46 | O99: -550.79 | P99: -630.04 | Q99: 0.00
G100: 0.4125 | H100: 24.75 | I100: 0.00 | J100: 0.00 | K100: 0.00 | L100: 0.26 | M100: 0.26 | N100: 14.39 | O100: -546.12 | P100: -625.78 | Q100: 0.00
G101: 0.4166666667 | H101: 25 | I101: 0.00 | J101: 0.00 | K101: 0.00 | L101: 0.40 | M101: 0.40 | N101: 14.32 | O101: -541.52 | P101: -621.58 | Q101: 0.00
G102: 0.4208333333 | H102: 25.25 | I102: 0.00 | J102: 0.00 | K102: 0.00 | L102: 0.18 | M102: 0.18 | N102: 14.24 | O102: -536.97 | P102: -617.43 | Q102: 0.00
G103: 0.425 | H103: 25.5 | I103: 0.00 | J103: 0.00 | K103: 0.00 | L103: 0.28 | M103: 0.28 | N103: 14.17 | O103: -532.48 | P103: -613.34 | Q103: 0.00
G104: 0.4291666667 | H104: 25.75 | I104: 0.00 | J104: 0.00 | K104: 0.00 | L104: 0.02 | M104: 0.02 | N104: 14.11 | O104: -528.05 | P104: -609.30 | Q104: 0.00
G105: 0.4333333333 | H105: 26 | I105: 0.00 | J105: 0.00 | K105: 0.00 | L105: 0.02 | M105: 0.02 | N105: 14.04 | O105: -523.67 | P105: -605.32 | Q105: 0.00
G106: 0.4375 | H106: 26.25 | I106: 0.00 | J106: 0.00 | K106: 0.00 | L106: 0.25 | M106: 0.25 | N106: 13.97 | O106: -519.35 | P106: -601.39 | Q106: 0.00
G107: 0.4416666667 | H107: 26.5 | I107: 0.00 | J107: 0.00 | K107: 0.00 | L107: 0.32 | M107: 0.32 | N107: 13.90 | O107: -515.08 | P107: -597.51 | Q107: 0.00
G108: 0.4458333333 | H108: 26.75 | I108: 0.00 | J108: 0.00 | K108: 0.00 | L108: 0.12 | M108: 0.12 | N108: 13.84 | O108: -510.86 | P108: -593.68 | Q108: 0.00
G109: 0.45 | H109: 27 | I109: 0.00 | J109: 0.00 | K109: 0.00 | L109: 0.49 | M109: 0.49 | N109: 13.78 | O109: -506.69 | P109: -589.89 | Q109: 0.00
G110: 0.4541666667 | H110: 27.25 | I110: 0.00 | J110: 0.00 | K110: 0.00 | L110: 0.36 | M110: 0.36 | N110: 13.71 | O110: -502.57 | P110: -586.16 | Q110: 0.00
G111: 0.4583333333 | H111: 27.5 | I111: 0.00 | J111: 0.00 | K111: 0.00 | L111: 0.10 | M111: 0.10 | N111: 13.65 | O111: -498.50 | P111: -582.47 | Q111: 0.00
G112: 0.4625 | H112: 27.75 | I112: 0.00 | J112: 0.00 | K112: 0.00 | L112: 0.38 | M112: 0.38 | N112: 13.59 | O112: -494.48 | P112: -578.83 | Q112: 0.00
G113: 0.4666666667 | H113: 28 | I113: 0.00 | J113: 0.00 | K113: 0.00 | L113: 0.28 | M113: 0.28 | N113: 13.53 | O113: -490.50 | P113: -575.23 | Q113: 0.00
G114: 0.4708333333 | H114: 28.25 | I114: 0.00 | J114: 0.00 | K114: 0.00 | L114: 0.12 | M114: 0.12 | N114: 13.47 | O114: -486.57 | P114: -571.68 | Q114: 0.00
G115: 0.475 | H115: 28.5 | I115: 0.00 | J115: 0.00 | K115: 0.00 | L115: 0.08 | M115: 0.08 | N115: 13.41 | O115: -482.68 | P115: -568.16 | Q115: 0.00
G116: 0.4791666667 | H116: 28.75 | I116: 0.00 | J116: 0.00 | K116: 0.00 | L116: 0.12 | M116: 0.12 | N116: 13.35 | O116: -478.84 | P116: -564.69 | Q116: 0.00
G117: 0.4833333333 | H117: 29 | I117: 0.00 | J117: 0.00 | K117: 0.00 | L117: 0.48 | M117: 0.48 | N117: 13.29 | O117: -475.03 | P117: -561.26 | Q117: 0.00
G118: 0.4875 | H118: 29.25 | I118: 0.00 | J118: 0.00 | K118: 0.00 | L118: 0.19 | M118: 0.19 | N118: 13.24 | O118: -471.27 | P118: -557.87 | Q118: 0.00
G119: 0.4916666667 | H119: 29.5 | I119: 0.00 | J119: 0.00 | K119: 0.00 | L119: 0.38 | M119: 0.38 | N119: 13.18 | O119: -467.55 | P119: -554.52 | Q119: 0.00
G120: 0.4958333333 | H120: 29.75 | I120: 0.00 | J120: 0.00 | K120: 0.00 | L120: 0.08 | M120: 0.08 | N120: 13.12 | O120: -463.87 | P120: -551.21 | Q120: 0.00
G121: 0.5 | H121: 30 | I121: 0.00 | J121: 0.00 | K121: 0.00 | L121: 0.19 | M121: 0.19 | N121: 13.07 | O121: -460.23 | P121: -547.93 | Q121: 0.00
G122: 0.5041666667 | H122: 30.25 | I122: 0.00 | J122: 0.00 | K122: 0.00 | L122: 0.45 | M122: 0.45 | N122: 13.01 | O122: -456.62 | P122: -544.69 | Q122: 0.00
G123: 0.5083333333 | H123: 30.5 | I123: 0.00 | J123: 0.00 | K123: 0.00 | L123: 0.24 | M123: 0.24 | N123: 12.96 | O123: -453.06 | P123: -541.49 | Q123: 0.00
G124: 0.5125 | H124: 30.75 | I124: 0.00 | J124: 0.00 | K124: 0.00 | L124: 0.31 | M124: 0.31 | N124: 12.91 | O124: -449.53 | P124: -538.32 | Q124: 0.00
G125: 0.5166666667 | H125: 31 | I125: 0.00 | J125: 0.00 | K125: 0.00 | L125: 0.14 | M125: 0.14 | N125: 12.86 | O125: -446.03 | P125: -535.19 | Q125: 0.00
G126: 0.5208333333 | H126: 31.25 | I126: 0.00 | J126: 0.00 | K126: 0.00 | L126: 0.14 | M126: 0.14 | N126: 12.80 | O126: -442.57 | P126: -532.09 | Q126: 0.00
G127: 0.525 | H127: 31.5 | I127: 0.00 | J127: 0.00 | K127: 0.00 | L127: 0.05 | M127: 0.05 | N127: 12.75 | O127: -439.15 | P127: -529.02 | Q127: 0.00
G128: 0.5291666667 | H128: 31.75 | I128: 0.00 | J128: 0.00 | K128: 0.00 | L128: 0.48 | M128: 0.48 | N128: 12.70 | O128: -435.76 | P128: -525.98 | Q128: 0.00
G129: 0.5333333333 | H129: 32 | I129: 0.00 | J129: 0.00 | K129: 0.00 | L129: 0.05 | M129: 0.05 | N129: 12.65 | O129: -432.40 | P129: -522.98 | Q129: 0.00
G130: 0.5375 | H130: 32.25 | I130: =(Ceq*0.5*EXP(-H130*koff)*(NORMSDIST((plugl-capl+H130*vc)/SQRT(4*H130*dc))-NORMSDIST((H130*vc-capl)/SQRT(4*H130*dc)))*$B$31) -> 0.00 | J130: =(((Aeq/2)*(NORMSDIST((plugl-capl+(H130*va))/SQRT(4*H130*da))-NORMSDIST((H130*va-capl)/SQRT(4*H130*dc))))*$B$31) -> 0.00 | K130: =((koff*Ceq*EXP(-(capl-va*H130)*koff/(vc-va))/(2*(vc-va)))*Q130*((O130+N130)*NORMSDIST(N130+O130)-O130*NORMSDIST(O130)-(P130+N130)*NORMSDIST(N130+P130)+P130*NORMSDIST(P130)+(EXP(-((O130+N130)^2))-EXP(-(O130^2))-EXP(-((P130+N130)^2))+EXP(-(P130^2)))/SQRT(PI()))*$B$31) -> 0.00 | L130: =$B$19*RAND() -> 0.36 | M130: 0.36 | N130: =plugl/Q130 -> 12.60 | O130: =(vc*H130-capl)/Q130 -> -429.08 | P130: =(va*H130-capl)/Q130 -> -520.01 | Q130: =2*SQRT((dc*(capl-va*H130)-da*(capl-vc*H130))/(vc-va)) -> 0.00
G131: =H131/60 -> 0.5416666667 | H131: 32.5 | I131: 0.00 | J131: 0.00 | K131: 0.00 | L131: 0.13 | M131: =SUM(I131:K131)+L131 -> 0.13 | N131: 12.56 | O131: -425.79 | P131: -517.07 | Q131: 0.00
G132: 0.5458333333 | H132: 32.75 | I132: 0.00 | J132: 0.00 | K132: 0.00 | L132: 0.18 | M132: 0.18 | N132: 12.51 | O132: -422.53 | P132: -514.16 | Q132: 0.00
G133: 0.55 | H133: 33 | I133: 0.00 | J133: 0.00 | K133: 0.00 | L133: 0.49 | M133: 0.49 | N133: 12.46 | O133: -419.30 | P133: -511.28 | Q133: 0.00
G134: 0.5541666667 | H134: 33.25 | I134: 0.00 | J134: 0.00 | K134: 0.00 | L134: 0.07 | M134: 0.07 | N134: 12.41 | O134: -416.10 | P134: -508.43 | Q134: 0.00
G135: 0.5583333333 | H135: 33.5 | I135: 0.00 | J135: 0.00 | K135: 0.00 | L135: 0.33 | M135: 0.33 | N135: 12.37 | O135: -412.93 | P135: -505.61 | Q135: 0.00
G136: 0.5625 | H136: 33.75 | I136: 0.00 | J136: 0.00 | K136: 0.00 | L136: 0.43 | M136: 0.43 | N136: 12.32 | O136: -409.79 | P136: -502.81 | Q136: 0.00
G137: 0.5666666667 | H137: 34 | I137: 0.00 | J137: 0.00 | K137: 0.00 | L137: 0.09 | M137: 0.09 | N137: 12.28 | O137: -406.68 | P137: -500.04 | Q137: 0.00
G138: 0.5708333333 | H138: 34.25 | I138: 0.00 | J138: 0.00 | K138: 0.00 | L138: 0.24 | M138: 0.24 | N138: 12.23 | O138: -403.60 | P138: -497.30 | Q138: 0.00
G139: 0.575 | H139: 34.5 | I139: 0.00 | J139: 0.00 | K139: 0.00 | L139: 0.26 | M139: 0.26 | N139: 12.19 | O139: -400.54 | P139: -494.59 | Q139: 0.00
G140: 0.5791666667 | H140: 34.75 | I140: 0.00 | J140: 0.00 | K140: 0.00 | L140: 0.13 | M140: 0.13 | N140: 12.14 | O140: -397.51 | P140: -491.90 | Q140: 0.00
G141: 0.5833333333 | H141: 35 | I141: 0.00 | J141: 0.00 | K141: 0.00 | L141: 0.16 | M141: 0.16 | N141: 12.10 | O141: -394.51 | P141: -489.24 | Q141: 0.00
G142: 0.5875 | H142: 35.25 | I142: 0.00 | J142: 0.00 | K142: 0.00 | L142: 0.06 | M142: 0.06 | N142: 12.06 | O142: -391.54 | P142: -486.60 | Q142: 0.00
G143: 0.5916666667 | H143: 35.5 | I143: 0.00 | J143: 0.00 | K143: 0.00 | L143: 0.35 | M143: 0.35 | N143: 12.01 | O143: -388.59 | P143: -483.99 | Q143: 0.00
G144: 0.5958333333 | H144: 35.75 | I144: 0.00 | J144: 0.00 | K144: 0.00 | L144: 0.20 | M144: 0.20 | N144: 11.97 | O144: -385.67 | P144: -481.40 | Q144: 0.00
G145: 0.6 | H145: 36 | I145: 0.00 | J145: 0.00 | K145: 0.00 | L145: 0.08 | M145: 0.08 | N145: 11.93 | O145: -382.77 | P145: -478.84 | Q145: 0.00
G146: 0.6041666667 | H146: 36.25 | I146: 0.00 | J146: 0.00 | K146: 0.00 | L146: 0.43 | M146: 0.43 | N146: 11.89 | O146: -379.89 | P146: -476.30 | Q146: 0.00
G147: 0.6083333333 | H147: 36.5 | I147: 0.00 | J147: 0.00 | K147: 0.00 | L147: 0.41 | M147: 0.41 | N147: 11.85 | O147: -377.04 | P147: -473.78 | Q147: 0.00
G148: 0.6125 | H148: 36.75 | I148: 0.00 | J148: 0.00 | K148: 0.00 | L148: 0.29 | M148: 0.29 | N148: 11.81 | O148: -374.22 | P148: -471.29 | Q148: 0.00
G149: 0.6166666667 | H149: 37 | I149: 0.00 | J149: 0.00 | K149: 0.00 | L149: 0.45 | M149: 0.45 | N149: 11.77 | O149: -371.42 | P149: -468.81 | Q149: 0.00
G150: 0.6208333333 | H150: 37.25 | I150: 0.00 | J150: 0.00 | K150: 0.00 | L150: 0.47 | M150: 0.47 | N150: 11.73 | O150: -368.64 | P150: -466.36 | Q150: 0.00
G151: 0.625 | H151: 37.5 | I151: 0.00 | J151: 0.00 | K151: 0.00 | L151: 0.12 | M151: 0.12 | N151: 11.69 | O151: -365.88 | P151: -463.94 | Q151: 0.00
G152: 0.6291666667 | H152: 37.75 | I152: 0.00 | J152: 0.00 | K152: 0.00 | L152: 0.37 | M152: 0.37 | N152: 11.65 | O152: -363.15 | P152: -461.53 | Q152: 0.00
G153: 0.6333333333 | H153: 38 | I153: 0.00 | J153: 0.00 | K153: 0.00 | L153: 0.28 | M153: 0.28 | N153: 11.61 | O153: -360.44 | P153: -459.14 | Q153: 0.00
G154: 0.6375 | H154: 38.25 | I154: 0.00 | J154: 0.00 | K154: 0.00 | L154: 0.07 | M154: 0.07 | N154: 11.57 | O154: -357.75 | P154: -456.78 | Q154: 0.00
G155: 0.6416666667 | H155: 38.5 | I155: 0.00 | J155: 0.00 | K155: 0.00 | L155: 0.37 | M155: 0.37 | N155: 11.54 | O155: -355.08 | P155: -454.43 | Q155: 0.00
G156: 0.6458333333 | H156: 38.75 | I156: 0.00 | J156: 0.00 | K156: 0.00 | L156: 0.05 | M156: 0.05 | N156: 11.50 | O156: -352.43 | P156: -452.10 | Q156: 0.00
G157: 0.65 | H157: 39 | I157: 0.00 | J157: 0.00 | K157: 0.00 | L157: 0.29 | M157: 0.29 | N157: 11.46 | O157: -349.80 | P157: -449.80 | Q157: 0.00
G158: 0.6541666667 | H158: 39.25 | I158: 0.00 | J158: 0.00 | K158: 0.00 | L158: 0.37 | M158: 0.37 | N158: 11.43 | O158: -347.20 | P158: -447.51 | Q158: 0.00
G159: 0.6583333333 | H159: 39.5 | I159: 0.00 | J159: 0.00 | K159: 0.00 | L159: 0.42 | M159: 0.42 | N159: 11.39 | O159: -344.61 | P159: -445.24 | Q159: 0.00
G160: 0.6625 | H160: 39.75 | I160: 0.00 | J160: 0.00 | K160: 0.00 | L160: 0.30 | M160: 0.30 | N160: 11.35 | O160: -342.04 | P160: -443.00 | Q160: 0.00
G161: 0.6666666667 | H161: 40 | I161: 0.00 | J161: 0.00 | K161: 0.00 | L161: 0.26 | M161: 0.26 | N161: 11.32 | O161: -339.49 | P161: -440.76 | Q161: 0.00
G162: 0.6708333333 | H162: 40.25 | I162: 0.00 | J162: 0.00 | K162: 0.00 | L162: 0.45 | M162: 0.45 | N162: 11.28 | O162: -336.97 | P162: -438.55 | Q162: 0.00
G163: 0.675 | H163: 40.5 | I163: 0.00 | J163: 0.00 | K163: 0.00 | L163: 0.27 | M163: 0.27 | N163: 11.25 | O163: -334.46 | P163: -436.36 | Q163: 0.00
G164: 0.6791666667 | H164: 40.75 | I164: 0.00 | J164: 0.00 | K164: 0.00 | L164: 0.20 | M164: 0.20 | N164: 11.21 | O164: -331.97 | P164: -434.18 | Q164: 0.00
G165: 0.6833333333 | H165: 41 | I165: 0.00 | J165: 0.00 | K165: 0.00 | L165: 0.42 | M165: 0.42 | N165: 11.18 | O165: -329.49 | P165: -432.02 | Q165: 0.00
G166: 0.6875 | H166: 41.25 | I166: 0.00 | J166: 0.00 | K166: 0.00 | L166: 0.37 | M166: 0.37 | N166: 11.14 | O166: -327.04 | P166: -429.88 | Q166: 0.00
G167: 0.6916666667 | H167: 41.5 | I167: 0.00 | J167: 0.00 | K167: 0.00 | L167: 0.13 | M167: 0.13 | N167: 11.11 | O167: -324.60 | P167: -427.75 | Q167: 0.00
G168: 0.6958333333 | H168: 41.75 | I168: 0.00 | J168: 0.00 | K168: 0.00 | L168: 0.24 | M168: 0.24 | N168: 11.08 | O168: -322.18 | P168: -425.65 | Q168: 0.00
G169: 0.7 | H169: 42 | I169: 0.00 | J169: 0.00 | K169: 0.00 | L169: 0.04 | M169: 0.04 | N169: 11.04 | O169: -319.78 | P169: -423.55 | Q169: 0.00
G170: 0.7041666667 | H170: 42.25 | I170: 0.00 | J170: 0.00 | K170: 0.00 | L170: 0.29 | M170: 0.29 | N170: 11.01 | O170: -317.40 | P170: -421.48 | Q170: 0.00
G171: 0.7083333333 | H171: 42.5 | I171: 0.00 | J171: 0.00 | K171: 0.00 | L171: 0.35 | M171: 0.35 | N171: 10.98 | O171: -315.03 | P171: -419.42 | Q171: 0.00
G172: 0.7125 | H172: 42.75 | I172: 0.00 | J172: 0.00 | K172: 0.00 | L172: 0.12 | M172: 0.12 | N172: 10.95 | O172: -312.68 | P172: -417.37 | Q172: 0.00
G173: 0.7166666667 | H173: 43 | I173: 0.00 | J173: 0.00 | K173: 0.00 | L173: 0.12 | M173: 0.12 | N173: 10.92 | O173: -310.35 | P173: -415.34 | Q173: 0.00
G174: 0.7208333333 | H174: 43.25 | I174: 0.00 | J174: 0.00 | K174: 0.00 | L174: 0.36 | M174: 0.36 | N174: 10.88 | O174: -308.03 | P174: -413.33 | Q174: 0.00
G175: 0.725 | H175: 43.5 | I175: 0.00 | J175: 0.00 | K175: 0.00 | L175: 0.06 | M175: 0.06 | N175: 10.85 | O175: -305.72 | P175: -411.33 | Q175: 0.00
G176: 0.7291666667 | H176: 43.75 | I176: 0.00 | J176: 0.00 | K176: 0.00 | L176: 0.10 | M176: 0.10 | N176: 10.82 | O176: -303.44 | P176: -409.35 | Q176: 0.00
G177: 0.7333333333 | H177: 44 | I177: 0.00 | J177: 0.00 | K177: 0.00 | L177: 0.07 | M177: 0.07 | N177: 10.79 | O177: -301.17 | P177: -407.38 | Q177: 0.00
G178: 0.7375 | H178: 44.25 | I178: 0.00 | J178: 0.00 | K178: 0.00 | L178: 0.41 | M178: 0.41 | N178: 10.76 | O178: -298.91 | P178: -405.42 | Q178: 0.00
G179: 0.7416666667 | H179: 44.5 | I179: 0.00 | J179: 0.00 | K179: 0.00 | L179: 0.47 | M179: 0.47 | N179: 10.73 | O179: -296.67 | P179: -403.48 | Q179: 0.00
G180: 0.7458333333 | H180: 44.75 | I180: 0.00 | J180: 0.00 | K180: 0.00 | L180: 0.25 | M180: 0.25 | N180: 10.70 | O180: -294.44 | P180: -401.56 | Q180: 0.00
G181: 0.75 | H181: 45 | I181: 0.00 | J181: 0.00 | K181: 0.00 | L181: 0.07 | M181: 0.07 | N181: 10.67 | O181: -292.23 | P181: -399.64 | Q181: 0.00
G182: 0.7541666667 | H182: 45.25 | I182: 0.00 | J182: 0.00 | K182: 0.00 | L182: 0.24 | M182: 0.24 | N182: 10.64 | O182: -290.03 | P182: -397.74 | Q182: 0.00
G183: 0.7583333333 | H183: 45.5 | I183: 0.00 | J183: 0.00 | K183: 0.00 | L183: 0.16 | M183: 0.16 | N183: 10.61 | O183: -287.85 | P183: -395.86 | Q183: 0.00
G184: 0.7625 | H184: 45.75 | I184: 0.00 | J184: 0.00 | K184: 0.00 | L184: 0.02 | M184: 0.02 | N184: 10.58 | O184: -285.68 | P184: -393.99 | Q184: 0.00
G185: 0.7666666667 | H185: 46 | I185: 0.00 | J185: 0.00 | K185: 0.00 | L185: 0.20 | M185: 0.20 | N185: 10.55 | O185: -283.53 | P185: -392.13 | Q185: 0.00
G186: 0.7708333333 | H186: 46.25 | I186: 0.00 | J186: 0.00 | K186: 0.00 | L186: 0.05 | M186: 0.05 | N186: 10.53 | O186: -281.39 | P186: -390.28 | Q186: 0.00
G187: 0.775 | H187: 46.5 | I187: 0.00 | J187: 0.00 | K187: 0.00 | L187: 0.04 | M187: 0.04 | N187: 10.50 | O187: -279.26 | P187: -388.45 | Q187: 0.00
G188: 0.7791666667 | H188: 46.75 | I188: 0.00 | J188: 0.00 | K188: 0.00 | L188: 0.49 | M188: 0.49 | N188: 10.47 | O188: -277.15 | P188: -386.63 | Q188: 0.00
G189: 0.7833333333 | H189: 47 | I189: 0.00 | J189: 0.00 | K189: 0.00 | L189: 0.33 | M189: 0.33 | N189: 10.44 | O189: -275.05 | P189: -384.82 | Q189: 0.00
G190: 0.7875 | H190: 47.25 | I190: 0.00 | J190: 0.00 | K190: 0.00 | L190: 0.24 | M190: 0.24 | N190: 10.41 | O190: -272.96 | P190: -383.02 | Q190: 0.00
G191: 0.7916666667 | H191: 47.5 | I191: 0.00 | J191: 0.00 | K191: 0.00 | L191: 0.01 | M191: 0.01 | N191: 10.39 | O191: -270.88 | P191: -381.24 | Q191: 0.00
G192: 0.7958333333 | H192: 47.75 | I192: 0.00 | J192: 0.00 | K192: 0.00 | L192: 0.39 | M192: 0.39 | N192: 10.36 | O192: -268.82 | P192: -379.47 | Q192: 0.00
G193: 0.8 | H193: 48 | I193: 0.00 | J193: 0.00 | K193: 0.00 | L193: 0.21 | M193: 0.21 | N193: 10.33 | O193: -266.77 | P193: -377.71 | Q193: 0.00
G194: 0.8041666667 | H194: 48.25 | I194: =(Ceq*0.5*EXP(-H194*koff)*(NORMSDIST((plugl-capl+H194*vc)/SQRT(4*H194*dc))-NORMSDIST((H194*vc-capl)/SQRT(4*H194*dc)))*$B$31) -> 0.00 | J194: =(((Aeq/2)*(NORMSDIST((plugl-capl+(H194*va))/SQRT(4*H194*da))-NORMSDIST((H194*va-capl)/SQRT(4*H194*dc))))*$B$31) -> 0.00 | K194: =((koff*Ceq*EXP(-(capl-va*H194)*koff/(vc-va))/(2*(vc-va)))*Q194*((O194+N194)*NORMSDIST(N194+O194)-O194*NORMSDIST(O194)-(P194+N194)*NORMSDIST(N194+P194)+P194*NORMSDIST(P194)+(EXP(-((O194+N194)^2))-EXP(-(O194^2))-EXP(-((P194+N194)^2))+EXP(-(P194^2)))/SQRT(PI()))*$B$31) -> 0.00 | L194: =$B$19*RAND() -> 0.31 | M194: 0.31 | N194: =plugl/Q194 -> 10.30 | O194: =(vc*H194-capl)/Q194 -> -264.74 | P194: =(va*H194-capl)/Q194 -> -375.96 | Q194: =2*SQRT((dc*(capl-va*H194)-da*(capl-vc*H194))/(vc-va)) -> 0.00
G195: =H195/60 -> 0.8083333333 | H195: 48.5 | I195: 0.00 | J195: 0.00 | K195: 0.00 | L195: 0.39 | M195: =SUM(I195:K195)+L195 -> 0.39 | N195: 10.28 | O195: -262.71 | P195: -374.22 | Q195: 0.00
G196: 0.8125 | H196: 48.75 | I196: 0.00 | J196: 0.00 | K196: 0.00 | L196: 0.44 | M196: 0.44 | N196: 10.25 | O196: -260.70 | P196: -372.50 | Q196: 0.00
G197: 0.8166666667 | H197: 49 | I197: 0.00 | J197: 0.00 | K197: 0.00 | L197: 0.26 | M197: 0.26 | N197: 10.23 | O197: -258.70 | P197: -370.78 | Q197: 0.00
G198: 0.8208333333 | H198: 49.25 | I198: 0.00 | J198: 0.00 | K198: 0.00 | L198: 0.32 | M198: 0.32 | N198: 10.20 | O198: -256.71 | P198: -369.08 | Q198: 0.00
G199: 0.825 | H199: 49.5 | I199: 0.00 | J199: 0.00 | K199: 0.00 | L199: 0.39 | M199: 0.39 | N199: 10.17 | O199: -254.73 | P199: -367.39 | Q199: 0.00
G200: 0.8291666667 | H200: 49.75 | I200: 0.00 | J200: 0.00 | K200: 0.00 | L200: 0.23 | M200: 0.23 | N200: 10.15 | O200: -252.77 | P200: -365.71 | Q200: 0.00
... 4300 more rows
